[Event "DEN-ch Seniors 2018"]
[Site "Hvidovre"]
[Date "2018.02.15"]
[Round "4"]
[White "Sorensen, Ivan"]
[Black "Nielsen, Jan Torp"]
[Result "1-0"]
[ECO "D83"]
[WhiteElo "2039"]
[BlackElo "1819"]
[Annotator "NA RC"]
[PlyCount "95"]
[EventDate "2018.??.??"]
[EventType "tourn"]
[EventCountry "DEN"]
[SourceTitle "playchess.com"]
[Source "ChessBase"]
[SourceQuality "1"]
[TimeControl "40/5400+30:1800+30"]

{[%evp 8,95,23,28,31,0,43,-17,51,50,54,55,51,35,55,20,33,14,56,14,63,65,193,139,196,187,198,193,259,257,259,246,265,215,233,170,217,71,200,158,181,119,116,119,194,179,185,202,199,174,208,161,231,212,220,220,229,201,214,246,267,239,450,186,416,115,270,32767,253,32767,323,259,1114,464,444,493,433,478,479,477,455,464,443,424,407,32767,397,350,516,664]} 1. d4 {[%emt 0:00:00]} Nf6 {[%emt 0:01:51]} 2. c4 {[%emt 0:00:00]} g6 {[%emt 0:00:15]} 3. Nc3 {[%emt 0:00:00]} d5 {[%emt 0:00:22]} 4. Bf4 {[%emt 0:00:51]} Bg7 {[%emt 0:00:54]} 5. e3 {[%emt 0:00:04]} O-O {[%emt 0:00:47] LiveBook: 927 Games} 6. Qb3 {[%emt 0:02:32]} e6 {[%emt 0:03:59] D83: Grünfeld: 4 Bf4 Bg7 5 e3 0-0} (6... dxc4 7. Bxc4 c5 8. dxc5 Qa5 9. Nf3 Ne4 10. O-O Nxc5 11. Qc2 Nc6 12. a3 Bxc3 13. b4 Nxb4 14. Qxc3 Nc6 15. Qb2 Na4 {½-½ (15) Mahling,T (2570)-Svacek,P (2565) ICCF email 2014}) 7. h3 {[%emt 0:03:26]} (7. Nf3 $14) 7... c6 {[%emt 0:08:12]} (7... c5 $11) 8. Nf3 {[%emt 0:03:46]} Nbd7 {[%emt 0:00:46]} 9. Be2 {[%emt 0:04:26]} dxc4 {[%emt 0:01:45]} 10. Bxc4 {[%emt 0:01:06]} Nb6 {[%emt 0:00:28]} 11. Be2 {[%emt 0:00:56]} Nbd5 {[%emt 0:01:51]} 12. Bh2 {[%emt 0:04:58]} Qb6 {[%emt 0:03:09]} 13. Qc2 {[%emt 0:15:08]} Bd7 $146 {[%emt 0:03:02]} ({Find the theoretical novelty and annotate with similar games:} 13... Re8 14. O-O Nxc3 15. bxc3 Qa5 {1-0 (31) Cazzaniga,W (2104)-Cartella,G (1937) Milan 2005}) 14. O-O {[%emt 0:00:34]} Rac8 {[%emt 0:00:34]} (14... c5 $14) 15. Bd6 {[%emt 0:06:41]} Rfe8 {[%emt 0:03:21] [#]} 16. Na4 $1 {[%emt 0:03:48]} Qd8 {[%emt 0:09:49] [#]} 17. Nc5 $1 {[%emt 0:06:24]} b5 {[%emt 0:06:37]} (17... e5 {might work better.}) 18. e4 {[%emt 0:07:04]} Ne7 {[%emt 0:03:00]} 19. Qd2 {[%emt 0:14:49]} Ra8 {[%emt 0:06:51]} 20. g4 {[%emt 0:03:18]} Bc8 {[%emt 0:03:29]} 21. Qf4 {[%emt 0:01:53]} Rf8 {[%emt 0:03:37]} 22. Bc7 {[%emt 0:07:50]} (22. Be5 $18 {bietet bessere Gewinnchancen.} Nd7 23. Bxg7 Kxg7 24. g5 (24. Nxd7 Bxd7 25. g5 f6 $18)) 22... Qe8 {[%emt 0:00:36]} ({Black should play} 22... Nfd5 $14 23. exd5 (23. Bxd8 Nxf4 24. Bxe7 Nxe2+ 25. Kg2 Re8 $11) 23... Nxd5 24. Qxf7+ (24. Bxd8 Nxf4 25. Bxb5 Rxd8 $17) 24... Kxf7 25. Bxd8 Rxd8) 23. Qd6 {[%emt 0:03:05]} Nd7 {[%emt 0:04:25]} 24. Rac1 {[%emt 0:01:15]} Nxc5 {[%emt 0:01:55]} 25. Qxc5 {[%emt 0:00:13]} Bb7 {[%emt 0:11:41]} (25... f6 $16 26. Rfe1 Bb7) 26. Bd6 {[%emt 0:01:15]} Nc8 {[%emt 0:00:11]} 27. Bxf8 {[%emt 0:00:27]} Bxf8 {[%emt 0:00:14]} 28. Qc2 {[%emt 0:00:20]} a5 {[%emt 0:06:03]} 29. Ne5 {[%emt 0:00:55]} Ne7 {[%emt 0:01:03]} (29... Nd6 $142 30. g5 (30. Nxc6 Bh6 $18) 30... Bg7) 30. Nd3 {[%emt 0:01:36]} Bg7 {[%emt 0:01:11]} 31. Nc5 {[%emt 0:00:23]} Qb8 {[%emt 0:03:06]} 32. Rcd1 {[%emt 0:00:30]} Bc8 {[%emt 0:00:55]} 33. Qd2 {[%emt 0:00:40]} f5 {[%emt 0:01:09]} 34. Bf3 {[%emt 0:01:24]} e5 $2 {[%emt 0:02:09]} (34... fxe4 35. Bg2 (35. Nxe4 Nd5 $18) 35... Nd5) 35. d5 {[%emt 0:01:52]} (35. exf5 $142 gxf5 36. dxe5 Qxe5 37. Qd8+ Bf8 38. Nd7 Bxd7 39. Qxa8 fxg4 40. hxg4 (40. Rxd7 gxf3 41. Rfd1 Qg7+ 42. Kf1 Qg2+ 43. Ke1 Qg1+ 44. Kd2 Qxf2+ 45. Kc1 Qc5+ 46. Kb1 Qf5+ 47. Kc1 Qf4+ 48. Kb1 f2 $17)) 35... cxd5 $2 {[%emt 0:00:19]} (35... Qd6 36. Ne6 f4 37. Nxg7 Kxg7) 36. gxf5 $2 {[%emt 0:01:11]} (36. exf5 $18 {and the rest is easy.} Bb7 37. Nxb7 Qxb7 {[#]} 38. Qxd5+ $1 {[%mdl 512]} Nxd5 39. Bxd5+ Qxd5 40. Rxd5) 36... gxf5 $2 {[%emt 0:00:20]} (36... Qd6 $16) 37. exf5 {[%emt 0:00:35]} e4 {[%emt 0:01:40] [#]} 38. Bg4 $2 {[%emt 0:00:35]} (38. Nxe4 $1 $18 dxe4 39. Qd8+ (39. Bxe4 Bb7 $16) 39... Bf8 40. f6 (40. Bxe4 Bb7 $18)) 38... h5 $2 {[%emt 0:03:55]} (38... Qe5 $14) 39. Qg5 {[%emt 0:01:43]} hxg4 $2 {[%emt 0:00:39]} (39... Qe5) 40. Qxe7 {[%emt 0:00:00]} (40. f6 $142 {[%csl Gf6][%cal Rg5g7]} Nf5 41. Rxd5) 40... Bxf5 {[%emt 0:02:30]} 41. Rxd5 {[%emt 0:05:09]} Qf4 {[%emt 0:02:49]} 42. Ne6 {[%emt 0:06:21]} Bxe6 {[%emt 0:03:46]} 43. Qxe6+ {[%emt 0:00:11]} Qf7 {[%emt 0:04:01]} 44. Qxf7+ {[%emt 0:02:38]} Kxf7 {[%emt 0:00:12]} 45. Rxb5 {[%emt 0:01:24]} gxh3 {[%emt 0:00:44]} 46. Kh2 {[%emt 0:01:15]} Rh8 $18 {[%emt 0:02:10]} 47. Re1 {[%emt 0:01:39]} Bd4 {[%emt 0:00:56]} 48. Rxe4 {[%emt 0:00:31]} 1-0

[Event "DEN-ch Seniors 2018"]
[Site "Hvidovre"]
[Date "2018.02.15"]
[Round "4"]
[White "Hald, Jens Erik Kofoed"]
[Black "Hansen, Lars-Henrik Bech"]
[Result "1/2-1/2"]
[ECO "B00"]
[WhiteElo "1983"]
[BlackElo "1972"]
[Annotator "NA RC"]
[PlyCount "50"]
[EventDate "2018.??.??"]
[EventType "tourn"]
[EventCountry "DEN"]
[SourceTitle "playchess.com"]
[Source "ChessBase"]
[SourceQuality "1"]
[TimeControl "40/5400+30:1800+30"]

{[%evp 8,50,35,-5,6,8,8,10,27,-2,50,50,114,100,100,78,107,61,79,20,87,-66,67,58,46,-34,0,-98,-26,-71,155,198,200,35,758,822,793,0,0,0,0,-2,0,0,0]} 1. e4 {[%emt 0:00:00]} d6 {[%emt 0:01:30]} 2. Bc4 {[%emt 0:00:25]} Nf6 {[%emt 0:00:51]} 3. d3 {[%emt 0:00:18]} d5 {[%emt 0:00:31]} 4. exd5 {[%emt 0:01:13]} Nxd5 {[%emt 0:00:04]} 5. Bg5 {[%emt 0:04:16]} c6 {[%emt 0:00:51]} 6. Nc3 {[%emt 0:05:51]} Nxc3 {[%emt 0:07:40]} 7. bxc3 {[%emt 0:01:28]} Qa5 {[%emt 0:00:05]} 8. Qd2 {[%emt 0:01:04]} Qe5+ {[%emt 0:00:49]} 9. Ne2 {[%emt 0:01:44]} Bg4 {[%emt 0:08:25]} (9... e6 $14) 10. d4 {[%emt 0:04:18]} Qa5 {[%emt 0:06:26]} 11. O-O {[%emt 0:01:44]} Nd7 {[%emt 0:05:10]} 12. Rfe1 {[%emt 0:03:22]} e6 {[%emt 0:00:18]} 13. h3 {[%emt 0:02:18]} (13. Ng3 $16) 13... Bf5 {[%emt 0:04:06]} 14. Nf4 $2 {[%emt 0:15:00]} ({White should play} 14. Ng3 $16 Nb6 15. Bd3 (15. Nxf5 Nxc4 16. Qd3 Nd6 $14) 15... Bxd3 16. cxd3) 14... Nf6 {[%emt 0:09:10]} (14... h6 $17 15. Nxe6 fxe6) 15. Bxf6 {[%emt 0:06:16]} gxf6 {[%emt 0:00:06]} 16. g4 {[%emt 0:04:28]} (16. Nh5 $1 $14 O-O-O 17. Nxf6) 16... Bh6 {[%emt 0:00:28]} 17. Qe3 {[%emt 0:03:51]} (17. gxf5 $11 {keeps the balance.} Rg8+ 18. Kf1 (18. Kh1 Qxf5 19. Qe2 Bxf4 $17) 18... Qxf5 19. Rxe6+ Kf8 20. Qd3 Qxf4 21. Re4) 17... Rg8 {[%emt 0:01:57]} 18. Qf3 {[%emt 0:02:31]} Bxg4 $2 {[%emt 0:00:18]} (18... O-O-O $17 19. Ne2 Rd7) 19. hxg4 {[%emt 0:01:07]} Qf5 {[%emt 0:00:05] [#]} 20. Rxe6+ {[%emt 0:06:53]} (20. Nxe6 $1 $16 Rxg4+ 21. Kf1 Qxf3 22. Ng5+ Qe3 23. Rxe3+ (23. fxe3 Bxg5 24. Ke2 Rg2+ 25. Kf3 Rxc2 $17) 23... Kf8 24. Nxh7+ Kg7 25. Re7 Kxh7 26. Rxf7+ (26. Rxb7 Rh4 $18) 26... Kg6 27. Rxb7) 20... Kd8 $2 {[%emt 0:06:04]} (20... fxe6 $14 21. Bxe6 Rxg4+ 22. Qxg4 Qxg4+ 23. Bxg4 Bxf4) 21. Rd6+ {[%emt 0:04:34]} Kc8 {[%emt 0:03:28] [#]} 22. Rd8+ $11 {[%emt 0:03:52]} (22. Rxc6+ $1 $18 Kb8 (22... bxc6 23. Qxc6+) 23. Rb1 Qxg4+ 24. Qxg4 Rxg4+ 25. Ng2) 22... Kxd8 {[%emt 0:00:43]} 23. Ne6+ $1 {[%emt 0:01:37]} fxe6 {[%emt 0:00:04]} 24. Qxf5 {[%emt 0:00:13]} exf5 {[%emt 0:00:12]} 25. Bxg8 {[%emt 0:00:13]} fxg4 {[%emt 0:00:58]} 1/2-1/2

[Event "DEN-ch Seniors 2018"]
[Site "Hvidovre"]
[Date "2018.02.16"]
[Round "5"]
[White "Petersen, Peter Birk"]
[Black "Sorensen, Ivan"]
[Result "1-0"]
[ECO "B89"]
[WhiteElo "2130"]
[BlackElo "2039"]
[Annotator "NA RC"]
[PlyCount "49"]
[EventDate "2018.??.??"]
[EventType "tourn"]
[EventCountry "DEN"]
[SourceTitle "playchess.com"]
[Source "ChessBase"]
[SourceQuality "1"]
[TimeControl "40/5400+30:1800+30"]

{[%evp 12,47,24,21,10,32767,32767,15,14,-15,11,8,32767,20,8,0,-6,32767,43,5,32767,32767,78,43,30,31,32767,32767,185,194,374,645,1308,1457,29988,29989,29989,29990]} 1. e4 c5 2. Nf3 Nc6 3. d4 cxd4 4. Nxd4 Nf6 5. Nc3 d6 6. Bc4 e6 7. Be3 Be7 8. Qe2 a6 9. O-O-O Qc7 10. Bb3 Na5 11. g4 b5 12. g5 Nxb3+ {LiveBook: 268 Games} 13. axb3 Nd7 14. h4 Bb7 (14... b4 $15 15. Na4 Bb7) 15. f3 Nb6 16. h5 b4 17. Na4 Nxa4 18. bxa4 Qa5 19. g6 O-O (19... Qxa4 $16 20. Kb1 Bf6) 20. h6 hxg6 $2 (20... fxg6 {was necessary.} 21. hxg7 (21. Nxe6 Rfc8 $14) 21... Rf6) 21. hxg7 Rfc8 {[#]} 22. Nf5 $1 exf5 23. Qh2 Kxg7 24. Bd4+ Bf6 25. Qh6+ {Be7 Qh2+ f6} 1-0

[Event "DEN-ch Seniors 2018"]
[Site "Hvidovre"]
[Date "2018.02.16"]
[Round "5"]
[White "Schultz-Pedersen, Jesper"]
[Black "Hald, Jens Erik Kofoed"]
[Result "1/2-1/2"]
[ECO "B20"]
[WhiteElo "2068"]
[BlackElo "1983"]
[Annotator "NA RC"]
[PlyCount "40"]
[EventDate "2018.??.??"]
[EventType "tourn"]
[EventCountry "DEN"]
[SourceTitle "playchess.com"]
[Source "ChessBase"]
[SourceQuality "1"]
[TimeControl "40/5400+30:1800+30"]

{[%evp 12,36,-69,-13,-8,32767,39,36,35,0,0,-3,-6,32767,32767,32767,32767,0,10,32767,32767,32767,32767,32767,-31,-42,-7]} 1. e4 {[%emt 0:00:00]} c5 {[%emt 0:02:04]} 2. b4 {[%emt 0:00:00]} cxb4 {[%emt 0:00:36]} 3. a3 {[%emt 0:00:00]} d5 {[%emt 0:00:40]} 4. exd5 {[%emt 0:00:06]} Qxd5 {[%emt 0:00:08]} 5. Nf3 {[%emt 0:00:05]} e5 {[%emt 0:01:32]} 6. Bb2 {[%emt 0:00:10] B20: Sicilian: Unusual White 2nd moves} (6. axb4 Bxb4 7. Na3 Nc6 8. Nb5 Qd8 9. c3 Be7 10. d4 exd4 11. Bf4 Kf8 12. Bc4 Bg4 13. O-O a6 14. Nbxd4 Nxd4 15. cxd4 {½-½ (59) Williams,S (2439)-Dragun,K (2564) London 2015}) 6... Nc6 {[%emt 0:07:12]} 7. c4 {[%emt 0:00:53] LiveBook: 17 Games} Qe6 {[%emt 0:02:36]} 8. Bd3 {[%emt 0:00:28]} f6 {[%emt 0:04:15]} 9. O-O {[%emt 0:01:02]} Bc5 {[%emt 0:10:04]} 10. Re1 {[%emt 0:05:39]} Nge7 {[%emt 0:03:02]} 11. axb4 {[%emt 0:12:11]} Bxb4 {[%emt 0:07:28]} 12. Na3 {[%emt 0:04:33]} Bd7 $146 {[%emt 0:06:28]} ({Predecessor:} 12... a6 13. Bb1 Qd6 {0-1 (32) Meleshko,V-Lineikin,D Lvov 1999}) 13. Qb1 {[%emt 0:06:04]} g6 {[%emt 0:21:08]} 14. Nb5 {[%emt 0:10:47]} Rc8 {[%emt 0:03:17]} 15. Nxa7 {[%emt 0:04:05]} Nxa7 {[%emt 0:01:11]} 16. Rxa7 {[%emt 0:00:49]} Qb6 {[%emt 0:00:32]} 17. Ra1 {[%emt 0:06:29]} Bc5 {[%emt 0:01:31]} 18. Ba3 {[%emt 0:06:57]} Qxb1 $11 {[%emt 0:02:00]} 19. Rexb1 {[%emt 0:00:16]} Bxa3 {[%emt 0:00:25]} 20. Rxa3 {[%emt 0:00:08]} Bc6 {[%emt 0:00:30]} 1/2-1/2

[Event "DEN-ch Seniors 2018"]
[Site "Hvidovre"]
[Date "2018.02.16"]
[Round "5"]
[White "Nielsen, Jorgen Lovgren"]
[Black "Marshall, Michael"]
[Result "1/2-1/2"]
[ECO "C43"]
[WhiteElo "2041"]
[BlackElo "1826"]
[Annotator "NA RC"]
[PlyCount "33"]
[EventDate "2018.??.??"]
[EventType "tourn"]
[EventCountry "DEN"]
[SourceTitle "playchess.com"]
[Source "ChessBase"]
[SourceQuality "1"]
[TimeControl "40/5400+30:1800+30"]

{[%evp 8,23,6,6,1,-13,42,-8,26,0,23,32767,32767,18,8,32767,32767,22]} 1. e4 {[%emt 0:00:00]} e5 {[%emt 0:05:55]} 2. Nf3 {[%emt 0:00:02]} Nf6 {[%emt 0:00:21]} 3. d4 {[%emt 0:01:15]} Nxe4 {[%emt 0:00:52]} 4. dxe5 {[%emt 0:01:41]} d5 {[%emt 0:07:05]} 5. exd6 {[%emt 0:01:32]} Bxd6 {[%emt 0:03:49]} 6. Bd3 {[%emt 0:05:46]} ({Natürlich nicht} 6. Qd4 O-O $17) 6... Nf6 {[%emt 0:02:49]} 7. Bg5 {[%emt 0:05:26]} O-O {[%emt 0:01:26]} 8. O-O {[%emt 0:00:42]} Bg4 {[%emt 0:04:20]} 9. Nbd2 {[%emt 0:02:27]} Nbd7 {[%emt 0:02:13]} 10. Ne4 {[%emt 0:08:08]} Be7 $11 {[%emt 0:02:05]} 11. Nxf6+ {[%emt 0:11:05]} Nxf6 {[%emt 0:06:05]} 12. h3 {[%emt 0:05:30]} Bh5 {[%emt 0:01:13]} 13. g4 {[%emt 0:03:55]} Bg6 {[%emt 0:00:52]} 14. Bxg6 {[%emt 0:00:51]} hxg6 {[%emt 0:01:23]} 15. Qxd8 {[%emt 0:00:31]} Raxd8 {[%emt 0:01:38]} 16. Rfe1 {[%emt 0:00:53]} Rfe8 {[%emt 0:02:51]} 17. Re2 {[%emt 0:04:13]} 1/2-1/2

[Event "DEN-ch Seniors 2018"]
[Site "Hvidovre"]
[Date "2018.02.16"]
[Round "5"]
[White "Baliuniene, Margarita"]
[Black "Holler Johansen, Alexander Mikkel Jo"]
[Result "1-0"]
[ECO "D78"]
[WhiteElo "1881"]
[BlackElo "1904"]
[Annotator "NA RC"]
[PlyCount "139"]
[EventDate "2018.??.??"]
[EventType "tourn"]
[EventCountry "DEN"]
[SourceTitle "playchess.com"]
[Source "ChessBase"]
[SourceQuality "1"]
[TimeControl "40/5400+30:1800+30"]

1. Nf3 {[%emt 0:00:00]} Nf6 {[%emt 0:00:13]} 2. g3 {[%emt 0:00:00]} g6 {[%emt 0:00:16]} 3. Bg2 {[%emt 0:00:00]} Bg7 {[%emt 0:00:04]} 4. d4 {[%emt 0:00:04]} d5 {[%emt 0:00:30]} 5. O-O {[%emt 0:00:11]} O-O {[%emt 0:00:04]} 6. c4 {[%emt 0:01:45]} c6 {[%emt 0:00:17]} 7. b3 {[%emt 0:01:14]} a6 {[%emt 0:00:30]} 8. Nbd2 {[%emt 0:01:26]} b5 {[%emt 0:00:19]} 9. Bb2 {[%emt 0:00:51]} Bb7 {[%emt 0:01:19]} 10. Ne5 {[%emt 0:02:13]} Nbd7 {[%emt 0:00:39]} 11. f4 {[%emt 0:00:57]} Nxe5 {[%emt 0:03:15]} 12. dxe5 {[%emt 0:07:24]} Qb6+ {[%emt 0:01:38]} 13. Kh1 {[%emt 0:01:06]} (13. e3 $5) 13... Ng4 {[%emt 0:00:30]} 14. Nf3 {[%emt 0:03:10]} dxc4 {[%emt 0:05:40]} 15. Bd4 {[%emt 0:02:53]} c5 {[%emt 0:00:09]} 16. Bg1 {[%emt 0:00:11]} cxb3 {[%emt 0:08:14]} (16... Rad8 $17 17. Qc2 f6 18. exf6 exf6) 17. axb3 {[%emt 0:04:10]} a5 {[%emt 0:26:01]} 18. Qc2 {[%emt 0:06:12]} (18. Qd7 $11 e6 19. Rfc1) 18... Rfc8 {[%emt 0:03:59]} 19. Rfc1 {[%emt 0:01:12]} Qd8 {[%emt 0:16:12]} (19... f6 $17 20. h3 (20. Bxc5 Qe6 $17) 20... fxe5 21. hxg4 exf4 22. gxf4 Bxa1 23. Rxa1 Qf6) 20. h3 {[%emt 0:17:58]} Nh6 {[%emt 0:00:05]} 21. Bxc5 {[%emt 0:01:55]} Nf5 {[%emt 0:01:46]} 22. Kh2 {[%emt 0:00:22] [#]} Ne3 $1 {[%emt 0:00:42]} 23. Qd3 {[%emt 0:04:33]} Qxd3 {[%emt 0:01:18]} 24. exd3 {[%emt 0:00:04]} Nxg2 {[%emt 0:00:06]} 25. Kxg2 {[%emt 0:00:05]} Bd5 {[%emt 0:00:19]} ({Black should play} 25... Rc7 $15) 26. Bxe7 {[%emt 0:03:01]} Bxb3 $2 {[%emt 0:00:07]} (26... Rxc1 $11 {and Black has nothing to worry.} 27. Rxc1 Bxb3) 27. Rxc8+ {[%emt 0:06:40]} Rxc8 {[%emt 0:00:07]} 28. Rxa5 {[%emt 0:00:30]} Bc2 {[%emt 0:16:51]} 29. Ne1 {[%emt 0:12:45]} ({Resist} 29. Rxb5 $6 Bxd3 30. Rc5 Rxc5 $16) 29... Ba4 {[%emt 0:00:08]} 30. Kf2 {[%emt 0:01:13]} Bf8 {[%emt 0:04:45]} 31. Bxf8 {[%emt 0:00:27]} Kxf8 {[%emt 0:00:05]} 32. Ke3 {[%emt 0:00:20]} Rc1 {[%emt 0:01:30]} 33. Nf3 {[%emt 0:00:35]} Ra1 {[%emt 0:01:52]} 34. Ra8+ {[%emt 0:06:42]} Ke7 {[%emt 0:00:12]} 35. Rb8 {[%emt 0:01:01]} Kd7 {[%emt 0:00:22]} 36. Rb7+ {[%emt 0:00:24]} Kc6 {[%emt 0:00:18]} 37. Rxf7 {[%emt 0:00:07]} b4 {[%emt 0:00:27]} 38. Rf6+ $2 {[%emt 0:07:23]} (38. Rxh7 $18 b3 39. Nd4+ Kb6 40. Nxb3 Bxb3 41. Rg7) 38... Kc7 {[%emt 0:01:07]} 39. Rf7+ {[%emt 0:05:21]} Kb6 {[%emt 0:00:13]} 40. Nd2 {[%emt 0:01:25]} b3 {[%emt 0:31:26]} 41. Kd4 {[%emt 0:30:37]} Rc1 {[%emt 0:00:50]} 42. Nxb3 {[%emt 0:01:30]} Bxb3 {[%emt 0:00:06]} 43. Rxh7 {[%emt 0:00:08]} Rc6 $2 {[%emt 0:00:00]} (43... Rg1 $16) 44. g4 {[%emt 0:00:00]} Be6 {[%emt 0:00:00]} 45. Rg7 {[%emt 0:00:00]} Bc8 {[%emt 0:00:00]} 46. Ke4 {[%emt 0:00:00]} Bb7 {[%emt 0:00:26]} 47. Kd4 {[%emt 0:00:00]} Bc8 {[%emt 0:00:05]} 48. Re7 {[%emt 0:00:00]} Rc1 {[%emt 0:01:12]} 49. Rf7 {[%emt 0:00:00]} Rh1 $2 {[%emt 0:00:33]} (49... Rf1 50. e6 Kc6) 50. Rf6+ {[%emt 0:00:00]} Kc7 {[%emt 0:00:08]} 51. Rxg6 {[%emt 0:00:00]} Rxh3 {[%emt 0:00:05]} 52. f5 {[%emt 0:00:00]} Kd7 {[%emt 0:00:59]} 53. Rd6+ {[%emt 0:00:00]} Ke8 {[%emt 0:00:20]} 54. Ke4 {[%emt 0:00:00]} Bb7+ {[%emt 0:01:17]} 55. Kf4 {[%emt 0:00:00]} Rf3+ {[%emt 0:01:10]} 56. Kg5 {[%emt 0:00:00]} Bc8 {[%emt 0:03:46]} 57. d4 {[%emt 0:00:00]} Kf7 {[%emt 0:00:52]} 58. Rd8 $18 {[%emt 0:00:00]} (58. Rc6 $142 Bd7 59. e6+ Ke8 60. exd7+ Kxd7 61. Re6) 58... Ba6 {[%emt 0:00:21]} 59. Ra8 {[%emt 0:00:00]} Be2 {[%emt 0:00:15]} 60. Ra7+ {[%emt 0:00:00]} Ke8 {[%emt 0:00:13]} 61. Kf6 {[%emt 0:00:00]} Kd8 {[%emt 0:02:34]} 62. e6 {[%emt 0:00:00]} Bb5 {[%emt 0:01:38]} 63. e7+ {[%emt 0:00:00]} Kc8 {[%emt 0:00:15]} 64. Ra8+ {[%emt 0:00:00]} Kc7 {[%emt 0:00:12]} 65. e8=Q {[%emt 0:00:00]} Bxe8 {[%emt 0:00:05]} 66. Rxe8 {[%emt 0:00:00]} Rf4 {[%emt 0:00:08]} 67. g5 {[%emt 0:00:00]} Rxd4 {[%emt 0:00:06]} 68. g6 {[%emt 0:00:00]} Rd6+ {[%emt 0:00:19]} 69. Kf7 {[%emt 0:00:00]} Rd5 {[%emt 0:00:19]} 70. f6 {[%emt 0:00:00]} 1-0

[Event "DEN-ch Seniors 2018"]
[Site "Hvidovre"]
[Date "2018.02.17"]
[Round "6"]
[White "Stentebjerg-Hansen, Per"]
[Black "Baliuniene, Margarita"]
[Result "0-1"]
[ECO "D35"]
[WhiteElo "2261"]
[BlackElo "1881"]
[Annotator "NA"]
[PlyCount "102"]
[EventDate "2018.??.??"]
[EventType "tourn"]
[EventCountry "DEN"]
[SourceTitle "playchess.com"]
[Source "ChessBase"]
[SourceQuality "1"]
[TimeControl "40/5400+30:1800+30"]

{[%evp 8,87,8,13,14,27,27,18,24,27,19,25,22,11,26,18,38,34,41,14,23,22,23,16,32767,32767,32767,22,35,32767,13,32767,32767,32767,-16,-29,32767,32767,-35,32767,-36,-62,-66,-150,-53,-86,-70,-142,32767,32767,-125,-138,-161,-180,-129,-118,-125,-145,-127,-187,-164,-205,-84,32767,-78,-87,-28,-45,-29,-107,32767,32767,32767,-1024,32767,32767,32767,32767,32767,32767,32767,-911]} 1. d4 {[%emt 0:00:00]} d5 {[%emt 0:06:00]} 2. c4 {[%emt 0:00:00]} e6 {[%emt 0:00:21]} 3. Nc3 {[%emt 0:00:00]} Nf6 {[%emt 0:00:07]} 4. cxd5 {[%emt 0:00:09]} exd5 {[%emt 0:00:11]} 5. Bg5 {[%emt 0:00:06]} Be7 {[%emt 0:00:12]} 6. e3 {[%emt 0:00:14]} c6 {[%emt 0:00:29]} 7. Bd3 {[%emt 0:00:18]} Nbd7 {[%emt 0:00:30]} 8. h3 {[%emt 0:08:44] D35: Queen's Gambit Declined: Exchange Variation} Ne4 {[%emt 0:07:23] LiveBook: 13 Games} 9. Bf4 {[%emt 0:00:27]} Ndf6 {[%emt 0:01:33]} 10. Nge2 $146 {[%emt 0:01:03]} ({Predecessor:} 10. Qc2 Bd6 11. Nge2 Bxf4 12. Nxf4 Nd6 13. O-O-O Qe7 14. Kb1 Be6 15. Rhe1 O-O-O {½-½ (62) Rakhmanov,A (2662)-Grachev,B (2628) Sochi 2016}) 10... Bd6 {[%emt 0:02:09]} 11. Bxd6 {[%emt 0:01:19]} Nxc3 {[%emt 0:06:45]} 12. bxc3 {[%emt 0:01:01]} Qxd6 {[%emt 0:00:05]} 13. Ng3 {[%emt 0:02:11]} O-O {[%emt 0:01:27]} 14. O-O {[%emt 0:01:25]} g6 {[%emt 0:02:26]} 15. Qf3 {[%emt 0:09:24]} b6 {[%emt 0:06:09]} 16. Rfd1 {[%emt 0:03:51]} Bb7 {[%emt 0:05:06]} 17. a4 {[%emt 0:02:32]} Rac8 {[%emt 0:05:51]} 18. Rd2 {[%emt 0:16:48]} c5 {[%emt 0:07:07]} 19. Qd1 {[%emt 0:01:22]} c4 {[%emt 0:03:30]} 20. Bf1 {[%emt 0:03:32]} h5 {[%emt 0:01:31]} 21. h4 {[%emt 0:02:03]} Rfe8 {[%emt 0:03:48]} 22. Rb2 {[%emt 0:00:39]} Ng4 {[%emt 0:01:26]} 23. Qe1 {[%emt 0:01:57]} Qf6 {[%emt 0:01:57]} 24. Be2 {[%emt 0:00:50]} Qxh4 {[%emt 0:00:45]} 25. Nf1 {[%emt 0:00:48]} (25. Bxg4 $1 $15 Qxg4 26. a5) 25... Rc6 {[%emt 0:02:51]} (25... Bc6 $17 26. a5 b5) 26. Bxg4 {[%emt 0:07:49]} hxg4 {[%emt 0:06:24]} 27. f4 {[%emt 0:00:10]} Qe7 {[%emt 0:02:49]} 28. a5 {[%emt 0:01:11]} Bc8 {[%emt 0:00:42]} 29. axb6 {[%emt 0:01:14]} axb6 {[%emt 0:00:05]} 30. Rab1 {[%emt 0:00:51]} Qc7 {[%emt 0:00:21]} (30... Qf6 $19 31. Ra2 Bf5) 31. Qh4 {[%emt 0:05:13]} Bf5 {[%emt 0:00:36]} 32. Re1 {[%emt 0:00:42]} Qe7 {[%emt 0:02:33]} 33. Qh6 {[%emt 0:03:38]} (33. Qxe7 $17 Rxe7 34. Ng3) 33... Re6 {[%emt 0:02:55]} 34. g3 {[%emt 0:00:42]} g5 {[%emt 0:02:00]} (34... Qf6 $19 35. Ra2 b5) 35. Qh5 {[%emt 0:02:28]} Qf6 {[%emt 0:03:42]} 36. fxg5 {[%emt 0:13:22]} Qg7 {[%emt 0:00:16]} 37. Rb5 {[%emt 0:00:54]} Rd8 {[%emt 0:02:27]} 38. Ra1 {[%emt 0:04:30]} (38. Nd2 $11 {remains equal.}) 38... Qg6 {[%emt 0:03:34]} 39. Qh4 {[%emt 0:01:32]} Kg7 {[%emt 0:00:21]} 40. Qh1 $2 {[%emt 0:00:00]} (40. Qh6+ Qxh6 41. gxh6+ Rxh6 42. Rb2) 40... Be4 {[%emt 0:00:10]} 41. Qh6+ {[%emt 0:10:36]} Qxh6 {[%emt 0:00:09]} 42. gxh6+ {[%emt 0:00:03]} Rxh6 {[%emt 0:00:07]} 43. Nh2 {[%emt 0:09:31]} Rdh8 {[%emt 0:03:22]} 44. Rb2 $19 {[%emt 0:02:48]} Rh3 {[%emt 0:00:21]} 45. Raa2 {[%emt 0:02:57]} Rxg3+ {[%emt 0:00:18]} 46. Kf1 {[%emt 0:00:06]} Rxe3 {[%emt 0:03:58]} 47. Nxg4 {[%emt 0:00:18]} Rxc3 {[%emt 0:00:28]} 48. Rxb6 {[%emt 0:03:36]} Rh1+ {[%emt 0:03:24]} 49. Kf2 {[%emt 0:00:03]} Rf3+ {[%emt 0:00:43]} 50. Ke2 {[%emt 0:00:05]} Rf4 {[%emt 0:00:24]} 51. Nf2 {[%emt 0:00:10]} Rxf2+ {[%emt 0:00:21]} 0-1